bitfinex/quotes_SOLUSD_20250102
["timestamp","ask_amount","ask_price","bid_price","bid_amount"]
[1735813256238,8.050197,207.45,207.38,8.050197]
[1735813259436,8.050197,207.45,207.39,8.050197]
[1735813260738,8.050197,207.45,207.38,8.050197]
[1735813262234,8.050197,207.46,207.4,31.827081]
[1735813262442,1.5651,207.52,207.4,31.827081]
[1735813262443,1.5651,207.52,207.45,8.050197]
[1735813262733,1.5651,207.52,207.48,8.050197]
[1735813262938,1.5651,207.52,207.47,8.050197]
[1735813263448,1.5651,207.52,207.48,8.050197]
[1735813264126,8.050197,207.55,207.48,8.050197]
[1735813264740,8.050197,207.54,207.48,8.050197]
[1735813265346,8.050197,207.55,207.48,8.050197]
[1735813266544,8.050197,207.54,207.48,8.050197]
[1735813267928,8.050197,207.55,207.48,8.050197]
[1735813269460,20.0,207.57,207.49,8.050197]
[1735813269744,8.050197,207.56,207.49,8.050197]
[1735813270251,20.0,207.57,207.49,8.050197]
[1735813270547,8.050197,207.55,207.49,8.050197]
[1735813271043,20.0,207.57,207.49,8.050197]
[1735813271236,8.050197,207.56,207.49,8.050197]
[1735813271438,1.5182,207.58,207.51,8.050197]
[1735813271766,9.568397,207.58,207.51,8.050197]
[1735813272058,8.050197,207.57,207.51,8.050197]
[1735813274422,1.5182,207.58,207.51,8.050197]
[1735813274628,8.050197,207.57,207.5,8.050197]
[1735813276351,8.050197,207.56,207.5,8.050197]
[1735813277330,8.050197,207.57,207.5,8.050197]
[1735813277537,8.050197,207.54,207.45,12.0506]
[1735813277730,8.050197,207.54,207.47,8.050197]
[1735813278753,1.5182,207.58,207.47,8.050197]
[1735813278954,8.050197,207.55,207.47,8.050197]
[1735813279254,8.050197,207.54,207.47,8.050197]
[1735813281359,8.050197,207.55,207.47,8.050197]
[1735813283352,8.050197,207.55,207.48,8.050197]
[1735813283557,8.050197,207.55,207.44,23.776884]
[1735813283558,8.050197,207.55,207.47,28.050197]
[1735813283756,8.050197,207.55,207.48,8.050197]
[1735813283948,8.050197,207.56,207.48,8.050197]
[1735813284147,8.050197,207.56,207.49,8.050197]
[1735813284355,8.050197,207.56,207.48,8.050197]
[1735813284567,8.050197,207.56,207.49,8.050197]
[1735813285951,1.5182,207.58,207.49,8.050197]
[1735813286151,8.050197,207.56,207.49,8.050197]
[1735813290469,8.050197,207.58,207.5,8.050197]
[1735813290972,8.050197,207.57,207.5,8.050197]
[1735813291654,8.050197,207.56,207.49,8.050197]
[1735813292060,8.050197,207.55,207.47,20.0]
[1735813292370,8.050197,207.55,207.48,8.050197]
[1735813294659,8.050197,207.56,207.49,8.050197]
[1735813294850,12.0418,207.61,207.5,6.5838]
[1735813295050,8.050197,207.57,207.5,6.5838]
[1735813307579,12.0418,207.61,207.5,14.633997]
[1735813307754,8.050197,207.58,207.5,14.633997]
[1735813309874,8.050197,207.57,207.5,6.5838]
[1735813311299,8.050197,207.56,207.5,6.5838]
[1735813311656,12.0418,207.61,207.5,6.5838]
[1735813311862,8.050197,207.56,207.5,6.5838]
[1735813315091,12.0418,207.61,207.5,14.633997]
[1735813315301,8.050197,207.58,207.5,14.633997]
[1735813315597,8.050197,207.57,207.5,14.633997]
[1735813319595,7.56923485,207.62,207.52,8.050197]
[1735813319809,8.050197,207.6,207.52,8.050197]
[1735813327280,8.050197,207.59,207.52,8.050197]
[1735813329209,8.050197,207.58,207.51,8.050197]
[1735813329588,8.050197,207.55,207.5,6.5838]
[1735813333408,8.050197,207.51,207.45,6.1262]
[1735813333586,8.050197,207.5,207.45,6.1262]
[1735813333782,8.050197,207.48,207.45,6.1262]
[1735813333988,8.050197,207.46,207.39,1.631]
[1735813334210,8.050197,207.46,207.4,8.050197]
[1735813336790,8.050197,207.46,207.39,1.631]
[1735813336791,7.56923485,207.53,207.43,8.050197]
[1735813337008,8.050197,207.5,207.44,8.050197]
[1735813337701,7.56923485,207.54,207.45,6.6239]
[1735813337916,8.050197,207.52,207.45,14.674097]
[1735813338205,12.0456,207.55,207.45,14.674097]
[1735813338403,8.050197,207.52,207.45,14.674097]
[1735813340412,8.050197,207.53,207.46,8.050197]
[1735813343115,8.050197,207.52,207.45,14.674097]
[1735813343409,8.050197,207.5,207.45,6.6239]
[1735813343599,8.050197,207.48,207.45,6.6239]
[1735813343805,8.050197,207.48,207.41,8.050197]
[1735813345118,23.776884,207.52,207.41,8.050197]
[1735813345296,8.050197,207.48,207.41,8.050197]
[1735813345496,8.050197,207.47,207.4,14.693797]
[1735813345916,8.050197,207.47,207.41,8.050197]
[1735813346826,8.050197,207.48,207.41,8.050197]
[1735813347298,12.0469,207.53,207.43,8.050197]
[1735813347498,12.0469,207.53,207.4,6.6436]
[1735813347499,8.050197,207.51,207.44,8.050197]
[1735813348010,8.050197,207.54,207.47,8.050197]
[1735813349398,8.050197,207.53,207.46,8.050197]
[1735813351998,8.050197,207.54,207.47,8.050197]
[1735813352817,8.050197,207.53,207.46,8.050197]
[1735813354718,13.7088,207.59,207.49,8.050197]
[1735813354917,8.050197,207.58,207.51,8.050197]
[1735813356625,8.050197,207.58,207.5,8.050197]
[1735813358411,8.050197,207.57,207.5,8.050197]
[1735813358619,8.050197,207.58,207.5,8.050197]
[1735813361128,12.0412,207.63,207.51,8.050197]
[1735813361314,8.050197,207.59,207.52,8.050197]
[1735813362035,8.050197,207.58,207.51,8.050197]
[1735813367932,83.8383,207.64,207.52,8.050197]
[1735813368136,8.050197,207.59,207.52,8.050197]
[1735813368335,82.2,207.64,207.55,8.050197]
[1735813368521,8.050197,207.62,207.55,8.050197]
[1735813372040,8.050197,207.63,207.55,8.050197]
[1735813372729,12.039,207.66,207.56,8.050197]
[1735813372939,8.050197,207.63,207.56,8.050197]
[1735813373126,12.039,207.66,207.57,8.050197]
[1735813373326,8.050197,207.65,207.58,8.050197]
[1735813374346,8.050197,207.64,207.57,8.050197]
[1735813377463,45.4154091,207.71,207.63,8.050197]
[1735813377670,45.4154091,207.71,207.69,8.050197]
[1735813377839,45.4154091,207.71,207.7,8.050197]
[1735813378167,45.4154091,207.71,207.7,70.289969]
[1735813378534,15.1384697,207.77,207.7,38.089181]
[1735813378780,15.1384697,207.77,207.73,8.050197]
[1735813379342,15.1384697,207.77,207.75,8.050197]
[1735813379751,8.050197,207.82,207.75,8.050197]
[1735813381348,8.050197,207.82,207.74,8.050197]
[1735813381849,8.050197,207.78,207.73,20.0]
[1735813382053,8.050197,207.8,207.73,8.050197]
[1735813382353,24.0514,207.89,207.73,8.050197]
[1735813382354,12.0259,207.89,207.76,6.504]
[1735813382747,27.1643697,207.89,207.76,6.504]
[1735813383763,24.0475,207.93,207.76,6.504]
[1735813383764,8.050197,207.87,207.8,8.050197]
[1735813384864,8.050197,207.86,207.79,8.050197]
[1735813385054,8.050197,207.83,207.76,14.554197]
[1735813385252,8.050197,207.82,207.76,6.504]
[1735813385643,8.050197,207.79,207.76,6.504]
[1735813385938,8.050197,207.78,207.71,14.419697]
[1735813386146,8.050197,207.77,207.71,6.3695]
[1735813386347,8.050197,207.78,207.71,14.419697]
[1735813386937,8.050197,207.76,207.71,6.3695]
[1735813387162,8.050197,207.75,207.71,6.3695]
[1735813387662,8.050197,207.74,207.71,6.3695]
[1735813387850,8.050197,207.73,207.71,6.3695]
[1735813388052,8.050197,207.73,207.66,14.171697]
[1735813389557,8.050197,207.72,207.66,6.1215]
[1735813390461,8.050197,207.73,207.66,6.1215]
[1735813390653,8.050197,207.73,207.66,14.171697]
[1735813391354,8.050197,207.74,207.67,8.050197]
[1735813391549,8.050197,207.76,207.69,8.050197]
[1735813391756,24.0569,207.84,207.7,8.050197]
[1735813391757,8.050197,207.77,207.7,8.050197]
[1735813391950,12.0284,207.84,207.72,8.050197]
[1735813392275,8.050197,207.8,207.73,8.050197]
[1735813392445,8.050197,207.79,207.72,8.050197]
[1735813392767,8.050197,207.78,207.71,8.050197]
[1735813393065,8.050197,207.77,207.7,8.050197]
[1735813393266,8.050197,207.75,207.69,20.0]
[1735813393459,8.050197,207.74,207.67,8.050197]
[1735813394071,8.050197,207.75,207.68,8.050197]
[1735813394561,8.050197,207.74,207.67,8.050197]
[1735813394975,8.050197,207.73,207.66,14.89379675]
[1735813395653,8.050197,207.73,207.66,14.171697]
[1735813395853,8.050197,207.71,207.66,6.1215]
[1735813396964,8.050197,207.7,207.66,6.1215]
[1735813397970,8.050197,207.69,207.66,6.1215]
[1735813398554,8.050197,207.68,207.66,6.1215]
[1735813401376,8.050197,207.69,207.66,6.1215]
[1735813402075,8.050197,207.7,207.66,6.1215]
[1735813402853,8.050197,207.72,207.66,6.1215]
[1735813403059,8.050197,207.77,207.69,28.050197]
[1735813403256,8.050197,207.77,207.7,9.650497]
[1735813403673,8.050197,207.76,207.7,1.6003]
[1735813404481,8.050197,207.75,207.7,1.6003]
[1735813405172,8.050197,207.76,207.7,21.6003]
[1735813406169,23.776884,207.83,207.7,21.6003]
[1735813406365,12.55024507,207.75,207.7,21.6003]
[1735813406567,12.55024507,207.74,207.67,12.55024507]
[1735813406772,12.55024507,207.73,207.66,18.67174507]
[1735813407980,12.55024507,207.72,207.66,6.1215]
[1735813408662,12.55024507,207.74,207.67,12.55024507]
[1735813408990,12.55024507,207.73,207.66,18.67174507]
[1735813409300,12.55024507,207.74,207.67,12.55024507]
[1735813409589,12.55024507,207.75,207.68,12.55024507]
[1735813409795,12.0307,207.81,207.66,6.1215]
[1735813409796,12.0307,207.81,207.7,12.55024507]
[1735813409999,12.0307,207.81,207.69,20.0]
[1735813410000,12.55024507,207.75,207.69,20.0]
[1735813410461,12.55024507,207.74,207.67,12.55024507]
[1735813413387,12.55024507,207.74,207.66,18.67174507]
[1735813414982,12.55024507,207.74,207.67,12.55024507]
[1735813415181,12.55024507,207.77,207.7,12.55024507]
[1735813415404,12.55024507,207.8,207.73,12.55024507]
[1735813415889,12.55024507,207.81,207.73,12.55024507]
[1735813416288,13.6538,207.85,207.74,12.55024507]
[1735813416484,12.55024507,207.82,207.74,12.55024507]
[1735813416689,12.55024507,207.81,207.73,12.55024507]
[1735813417670,12.55024507,207.82,207.74,12.55024507]
[1735813418774,12.55024507,207.85,207.77,12.55024507]
[1735813419386,12.55024507,207.84,207.76,12.55024507]
[1735813419974,12.55024507,207.83,207.75,19.06104507]
[1735813421199,12.55024507,207.83,207.76,12.55024507]
[1735813421502,12.55024507,207.84,207.76,12.55024507]
[1735813421693,12.55024507,207.83,207.76,12.55024507]
[1735813422299,12.55024507,207.84,207.76,12.55024507]
[1735813422599,12.55024507,207.85,207.77,12.55024507]
[1735813424318,12.55024507,207.84,207.77,12.55024507]
[1735813424713,12.55024507,207.83,207.76,12.55024507]
[1735813425386,12.55024507,207.85,207.77,12.55024507]
[1735813426416,8.02536477,207.85,207.77,8.02536477]
[1735813427009,8.02536477,207.85,207.78,8.02536477]
[1735813427309,8.02536477,207.85,207.77,8.02536477]
[1735813427517,8.02536477,207.84,207.76,8.02536477]
[1735813428497,8.02536477,207.77,207.69,6.313]
[1735813428700,8.02536477,207.77,207.7,8.02536477]
[1735813429017,8.02536477,207.78,207.71,8.02536477]
[1735813429318,8.02536477,207.79,207.72,8.02536477]
[1735813430093,8.02536477,207.81,207.73,8.02536477]
[1735813430300,12.5442008,207.81,207.73,12.5442008]
[1735813431809,12.5442008,207.8,207.73,12.5442008]
[1735813434419,12.5442008,207.8,207.72,12.5442008]
[1735813436629,12.5442008,207.8,207.74,12.5442008]
[1735813437335,23.776884,207.83,207.74,12.5442008]
[1735813437533,12.5442008,207.81,207.74,12.5442008]
[1735813438899,12.5442008,207.81,207.72,12.5442008]
[1735813439102,12.5442008,207.79,207.72,12.5442008]
[1735813439412,12.5442008,207.79,207.7,12.5442008]
[1735813440001,12.5442008,207.75,207.69,6.313]
[1735813440303,12.5442008,207.8,207.64,18.8419008]
[1735813440304,12.5442008,207.71,207.64,18.8419008]
[1735813440703,12.5442008,207.71,207.64,6.2977]
[1735813440926,12.5442008,207.71,207.64,18.8419008]
[1735813441102,12.5442008,207.7,207.64,6.2977]
[1735813441305,12.5442008,207.69,207.64,6.2977]
[1735813441602,12.5442008,207.7,207.64,6.2977]
[1735813443431,12.5442008,207.66,207.62,1.5976]
[1735813443738,12.5442008,207.65,207.59,6.2932]
[1735813446831,12.5442008,207.64,207.59,6.2932]
[1735813448140,35.814084,207.69,207.53,6.6293]
[1735813448141,12.5442008,207.6,207.53,6.6293]
[1735813448343,12.5442008,207.55,207.53,6.6293]
[1735813448519,12.5442008,207.54,207.48,6.6293]
[1735813448725,12.5442008,207.6,207.48,6.6293]
[1735813448726,12.5442008,207.53,207.48,6.6293]
[1735813449436,12.5442008,207.54,207.48,6.6293]
[1735813449733,12.5442008,207.53,207.48,6.6293]
[1735813450239,12.5442008,207.52,207.48,6.6293]
[1735813450949,12.5442008,207.51,207.48,6.6293]
[1735813451151,12.5442008,207.54,207.48,6.6293]
[1735813451315,12.5442008,207.64,207.53,32.5442008]
[1735813451519,12.5442008,207.64,207.56,12.5442008]
[1735813451733,12.5442008,207.63,207.56,12.5442008]
[1735813453046,12.5442008,207.64,207.57,12.5442008]
[1735813454439,12.5442008,207.65,207.58,18.9491008]
[1735813454739,12.5442008,207.66,207.59,12.5442008]
[1735813454916,12.5442008,207.66,207.58,18.9491008]
[1735813455117,12.5442008,207.68,207.6,12.5442008]
[1735813455318,12.5442008,207.7,207.62,12.5442008]
[1735813455926,12.5442008,207.69,207.61,12.5442008]
[1735813456114,12.5442008,207.69,207.61,32.5442008]
[1735813457133,12.5442008,207.7,207.63,12.5442008]
[1735813458748,12.5442008,207.71,207.63,12.5442008]
[1735813460135,12.5442008,207.74,207.66,12.5442008]
[1735813460332,12.5442008,207.75,207.67,12.5442008]
[1735813460643,12.5442008,207.73,207.65,12.5442008]
[1735813461047,12.5442008,207.73,207.66,12.5442008]
[1735813461549,12.5442008,207.74,207.67,12.5442008]
[1735813461847,12.5442008,207.73,207.66,12.5442008]
[1735813462247,12.5442008,207.74,207.66,12.5442008]
[1735813462640,12.5442008,207.73,207.66,12.5442008]
[1735813462942,12.5442008,207.75,207.68,12.5442008]
[1735813463254,12.5442008,207.73,207.66,12.5442008]
[1735813464140,12.5442008,207.74,207.66,12.5442008]
[1735813466150,12.5442008,207.74,207.67,12.5442008]
[1735813466850,12.5442008,207.69,207.62,12.5442008]
[1735813467029,12.0332,207.76,207.57,1.6379]
[1735813467030,12.5442008,207.68,207.61,12.5442008]
[1735813468029,12.5442008,207.66,207.59,12.5442008]
[1735813468538,12.5442008,207.67,207.6,12.5442008]
[1735813468935,12.5442008,207.66,207.58,18.9491008]
[1735813469154,12.5442008,207.64,207.58,6.4049]
[1735813470055,12.5442008,207.65,207.58,18.9491008]
[1735813471131,12.5442008,207.64,207.58,6.4049]
[1735813476161,12.5442008,207.63,207.58,6.4049]
[1735813477247,12.5442008,207.62,207.55,12.5442008]
[1735813477445,12.5442008,207.6,207.54,6.4231]
[1735813477646,12.5442008,207.58,207.54,6.4231]
[1735813477963,12.5442008,207.55,207.49,18.9673008]
[1735813478538,12.5442008,207.55,207.49,6.4231]
[1735813479342,12.5442008,207.54,207.49,6.4231]
[1735813481366,12.5442008,207.53,207.47,1.5445]
[1735813482044,12.5442008,207.53,207.46,12.5442008]
[1735813482240,12.5442008,207.55,207.49,12.5442008]
[1735813482443,12.5442008,207.55,207.48,12.5442008]
[1735813482647,12.5442008,207.54,207.47,12.5442008]
[1735813482953,35.820284,207.59,207.47,12.5442008]
[1735813482954,12.5442008,207.53,207.47,12.5442008]
[1735813483347,12.5442008,207.55,207.48,12.5442008]
[1735813483562,12.5442008,207.57,207.5,12.5442008]
[1735813484565,12.5442008,207.58,207.51,12.5442008]
[1735813484867,12.5442008,207.59,207.52,12.5442008]
[1735813488165,12.0412,207.62,207.44,19.43159981]
[1735813488166,12.5442008,207.58,207.51,12.5442008]
[1735813488968,12.5442008,207.6,207.53,12.5442008]
[1735813489866,12.5442008,207.59,207.51,12.5442008]
[1735813490761,12.5442008,207.57,207.5,12.5442008]
[1735813490967,12.5442008,207.59,207.51,12.5442008]
[1735813493567,12.5442008,207.58,207.51,12.5442008]
[1735813495649,12.5442008,207.54,207.44,6.6571]
[1735813495849,12.5442008,207.54,207.46,12.5442008]
[1735813496350,8.04944822,207.54,207.47,20.0]
[1735813497153,8.04944822,207.54,207.47,28.04944822]
[1735813497554,8.04944822,207.55,207.47,28.04944822]
[1735813497768,8.04944822,207.55,207.48,8.04944822]
[1735813497956,8.04944822,207.54,207.47,28.04944822]
[1735813498273,12.57550704,207.55,207.48,12.57550704]
[1735813502479,12.57550704,207.54,207.47,12.57550704]
[1735813502658,12.57550704,207.53,207.45,12.57550704]
[1735813503188,12.57550704,207.52,207.44,6.6571]
[1735813503364,12.57550704,207.51,207.44,19.23260704]
[1735813503869,12.57550704,207.5,207.44,6.6571]
[1735813506085,12.57550704,207.49,207.42,14.10200704]
[1735813506682,12.57550704,207.5,207.42,14.10200704]
[1735813507787,12.57550704,207.49,207.42,14.10200704]
[1735813508881,12.57550704,207.47,207.4,12.57550704]
[1735813509296,12.57550704,207.47,207.41,12.57550704]
[1735813509863,12.57550704,207.47,207.4,12.57550704]
[1735813511088,12.57550704,207.46,207.4,12.57550704]
[1735813511284,12.57550704,207.44,207.39,6.0882]
[1735813511589,12.57550704,207.43,207.39,6.0882]
[1735813511964,12.57550704,207.42,207.39,6.0882]
[1735813512165,12.57550704,207.41,207.34,18.61160704]
[1735813512579,12.57550704,207.4,207.32,1.6452]
[1735813512775,12.57550704,207.39,207.32,14.22070704]
[1735813512966,12.57550704,207.39,207.32,34.22070704]
[1735813513172,12.57550704,207.4,207.33,12.57550704]
[1735813514795,12.57550704,207.41,207.35,12.57550704]
[1735813514986,12.57550704,207.41,207.34,12.57550704]
[1735813515166,12.57550704,207.4,207.33,12.57550704]
[1735813516072,12.57550704,207.4,207.34,12.57550704]
[1735813516591,12.57550704,207.45,207.38,12.57550704]
[1735813516970,12.0488,207.49,207.39,12.57550704]
[1735813516971,12.57550704,207.46,207.39,12.57550704]
[1735813517170,12.57550704,207.48,207.41,12.57550704]
[1735813517905,32.57550704,207.5,207.43,12.57550704]
[1735813518087,5.0,207.58,207.4,1.6126]
[1735813518088,12.57550704,207.54,207.47,12.57550704]
[1735813518285,8.04856925,207.54,207.48,8.04856925]
[1735813518591,7.51941371,207.61,207.48,20.0]
[1735813518780,15.56798296,207.61,207.54,8.04856925]
[1735813518978,31.82545325,207.6,207.53,8.04856925]
[1735813519493,8.04856925,207.6,207.53,8.04856925]
[1735813519816,8.04856925,207.61,207.54,8.04856925]
[1735813520084,1.6373,207.67,207.55,8.04856925]
[1735813520085,8.04856925,207.62,207.55,8.04856925]
[1735813520293,12.56665884,207.62,207.55,12.56665884]
[1735813520676,12.56665884,207.6,207.53,12.56665884]
[1735813520885,12.56665884,207.59,207.52,12.56665884]
[1735813522599,12.56665884,207.61,207.54,12.56665884]
[1735813522805,12.56665884,207.65,207.58,12.56665884]
[1735813523099,12.56665884,207.6,207.53,12.56665884]
[1735813523277,12.56665884,207.58,207.51,12.56665884]
[1735813526595,12.56665884,207.56,207.5,6.3984]
[1735813527084,12.56665884,207.56,207.49,12.56665884]
[1735813527482,12.56665884,207.57,207.5,12.56665884]
[1735813528305,12.56665884,207.59,207.51,12.56665884]
[1735813528505,12.56665884,207.61,207.54,12.56665884]
[1735813528801,12.56665884,207.6,207.53,12.56665884]
[1735813528982,12.56665884,207.59,207.52,12.56665884]
[1735813530602,12.56665884,207.59,207.48,0.72265131]
[1735813530603,12.56665884,207.6,207.53,12.56665884]
[1735813536907,23.776884,207.64,207.55,12.56665884]
[1735813537208,12.56665884,207.62,207.55,12.56665884]
[1735813537512,12.56665884,207.61,207.54,12.56665884]
[1735813539101,12.56665884,207.6,207.53,12.56665884]
[1735813539411,12.56665884,207.58,207.51,12.56665884]
[1735813539799,12.56665884,207.57,207.5,12.56665884]
[1735813540813,12.56665884,207.55,207.48,12.56665884]
[1735813540992,12.56665884,207.53,207.46,18.61305884]
[1735813541893,12.56665884,207.52,207.46,18.61305884]
[1735813543413,12.56665884,207.51,207.45,12.56665884]
[1735813543603,12.56665884,207.5,207.43,12.56665884]
[1735813543918,12.56665884,207.48,207.42,12.56665884]
[1735813544312,12.56665884,207.48,207.41,18.63995884]
[1735813545019,12.56665884,207.48,207.42,12.56665884]
[1735813545198,12.56665884,207.49,207.42,12.56665884]
[1735813545390,36.34354284,207.52,207.45,12.56665884]
[1735813545597,12.56665884,207.53,207.47,12.56665884]
[1735813545796,12.56665884,207.54,207.48,12.56665884]
[1735813546716,12.56665884,207.53,207.47,12.56665884]
[1735813547517,12.56665884,207.54,207.47,12.56665884]
[1735813547715,36.34354284,207.55,207.48,12.56665884]
[1735813550014,23.776884,207.55,207.49,12.56665884]
[1735813550217,12.56665884,207.56,207.49,12.56665884]
[1735813550409,23.776884,207.55,207.49,12.56665884]
[1735813550919,12.56665884,207.6,207.53,12.56665884]
[1735813551133,14.14255884,207.63,207.56,12.56665884]
[1735813551423,1.5759,207.63,207.57,12.56665884]
[1735813552022,23.776884,207.62,207.57,12.56665884]
[1735813554124,12.56665884,207.65,207.57,12.56665884]
[1735813554327,12.56665884,207.65,207.58,12.56665884]
[1735813554530,23.776884,207.64,207.58,12.56665884]
[1735813554718,12.56665884,207.65,207.58,12.56665884]
[1735813555121,12.56665884,207.66,207.59,12.56665884]
[1735813555428,13.6884,207.68,207.59,12.56665884]
[1735813555429,36.34354284,207.67,207.59,12.56665884]
[1735813556621,23.776884,207.65,207.59,12.56665884]
[1735813557832,12.56665884,207.65,207.58,12.56665884]
[1735813559828,23.776884,207.65,207.59,12.56665884]
[1735813560827,36.34354284,207.67,207.59,12.56665884]
[1735813562109,23.776884,207.67,207.59,12.56665884]
[1735813562326,23.776884,207.65,207.59,12.56665884]
[1735813562527,36.34354284,207.67,207.59,12.56665884]
[1735813563040,23.776884,207.65,207.59,12.56665884]
[1735813563713,12.56665884,207.65,207.58,12.56665884]
[1735813567627,12.56665884,207.66,207.59,12.56665884]
[1735813567828,36.34354284,207.67,207.6,12.56665884]
[1735813568031,1.6503,207.68,207.63,12.56665884]
[1735813568228,1.6503,207.68,207.62,12.56665884]
[1735813572632,14.21695884,207.68,207.61,12.56665884]
[1735813573953,12.56665884,207.66,207.59,12.56665884]
[1735813574412,8.03991205,207.66,207.59,8.03991205]
[1735813574614,8.03991205,207.66,207.6,8.03991205]
[1735813575018,31.81679605,207.67,207.61,8.03991205]
[1735813576113,23.776884,207.65,207.59,8.03991205]
[1735813577213,8.03991205,207.66,207.57,20.0]
[1735813577447,8.03991205,207.67,207.61,8.03991205]
[1735813577648,31.81679605,207.67,207.6,8.03991205]
[1735813578814,8.03991205,207.66,207.6,8.03991205]
[1735813579335,31.81679605,207.67,207.6,8.03991205]
[1735813579530,8.03991205,207.67,207.6,8.03991205]
[1735813579737,8.03991205,207.67,207.61,8.03991205]
[1735813581842,8.03991205,207.67,207.6,8.03991205]
[1735813584059,8.03991205,207.65,207.59,8.03991205]
[1735813584432,8.03991205,207.64,207.58,8.03991205]
[1735813584637,8.03991205,207.65,207.59,8.03991205]
[1735813586875,8.03991205,207.66,207.6,8.03991205]
[1735813587183,8.03991205,207.68,207.62,8.03991205]
[1735813587939,6.529,207.72,207.63,8.03991205]
[1735813588148,9.64501205,207.73,207.66,8.03991205]
[1735813588347,1.6051,207.73,207.67,8.03991205]
[1735813588655,23.776884,207.72,207.66,8.03991205]
[1735813588837,23.776884,207.76,207.66,8.03991205]
[1735813589043,8.03991205,207.75,207.68,8.03991205]
[1735813589359,8.03991205,207.77,207.7,8.03991205]
[1735813590246,23.776884,207.76,207.7,8.03991205]
[1735813590759,31.81679605,207.76,207.69,8.03991205]
[1735813590937,8.03991205,207.77,207.7,8.03991205]
[1735813591142,23.776884,207.76,207.71,8.03991205]
[1735813591762,23.776884,207.78,207.71,8.03991205]
[1735813592142,31.81679605,207.78,207.71,8.03991205]
[1735813592364,23.776884,207.76,207.7,8.03991205]
[1735813592969,31.81679605,207.78,207.71,8.03991205]
[1735813593263,23.776884,207.76,207.7,8.03991205]
[1735813593466,23.776884,207.76,207.65,7.14493727]
[1735813593467,23.776884,207.74,207.68,8.03991205]
[1735813593669,31.81679605,207.74,207.67,8.03991205]
[1735813593846,23.776884,207.74,207.68,8.03991205]
[1735813594654,8.03991205,207.76,207.69,8.03991205]
[1735813596570,1.5405,207.79,207.7,8.03991205]
[1735813596571,8.03991205,207.77,207.7,8.03991205]
[1735813596770,8.03991205,207.78,207.7,8.03991205]
[1735813596982,1.5405,207.79,207.72,8.03991205]
[1735813597155,8.03991205,207.8,207.73,8.03991205]
[1735813597488,8.03991205,207.81,207.74,8.03991205]
[1735813598166,1.5075,207.84,207.73,8.03991205]
[1735813598368,1.5075,207.84,207.77,8.03991205]
[1735813598573,9.54741205,207.84,207.77,8.03991205]
[1735813598754,8.03991205,207.85,207.77,8.03991205]
[1735813598956,23.776884,207.81,207.71,1.614]
[1735813599156,23.776884,207.81,207.73,8.03991205]
[1735813599353,8.03991205,207.81,207.74,8.03991205]
[1735813599554,23.776884,207.79,207.72,28.03991205]
[1735813600184,23.776884,207.77,207.71,8.03991205]
[1735813600355,23.776884,207.77,207.72,8.03991205]
[1735813600671,8.03991205,207.79,207.72,8.03991205]
[1735813601054,8.03991205,207.8,207.72,8.03991205]
[1735813601547,23.776884,207.79,207.72,8.03991205]
[1735813601957,23.776884,207.79,207.73,8.03991205]
[1735813602873,23.776884,207.78,207.69,7.0014572]
[1735813603166,23.776884,207.78,207.63,12.0402]
[1735813603167,23.776884,207.72,207.65,8.03991205]
[1735813603368,23.376884,207.72,207.66,8.03991205]
[1735813603572,23.376884,207.72,207.64,6.4631]
[1735813603573,23.376884,207.72,207.65,8.03991205]
[1735813603754,8.03991205,207.71,207.64,14.50301205]
[1735813603954,8.03991205,207.7,207.64,6.4631]
[1735813604171,8.03991205,207.71,207.64,6.4631]
[1735813604566,8.03991205,207.71,207.61,1.5807]
[1735813604764,8.03991205,207.71,207.63,8.03991205]
[1735813605279,8.03991205,207.7,207.63,8.03991205]
[1735813605459,23.776884,207.69,207.63,8.03991205]
[1735813605649,23.776884,207.69,207.62,8.03991205]
[1735813605650,31.81679605,207.69,207.62,8.03991205]
[1735813605852,31.81679605,207.67,207.6,8.03991205]
[1735813607160,23.776884,207.67,207.6,8.03991205]
[1735813607350,23.776884,207.67,207.59,6.1894]
[1735813607557,8.03991205,207.7,207.63,8.03991205]
[1735813607963,31.81679605,207.69,207.62,8.03991205]
[1735813608164,31.81679605,207.68,207.61,8.03991205]
[1735813608366,8.03991205,207.66,207.59,14.22931205]
[1735813608669,23.776884,207.66,207.6,8.03991205]
[1735813609962,1.5227,207.71,207.63,8.03991205]
[1735813610159,8.03991205,207.7,207.63,8.03991205]
[1735813610364,9.56261205,207.71,207.64,8.03991205]